[Event "Late-Titled-Tuesday-Blitz-June-18-2024"]
[Site "Chess.com"]
[Date "2024.06.18"]
[Round "1"]
[White "CrimeFightingSpider07"]
[Black "Annawel"]
[Result "1/2-1/2"]
[WhiteElo "2528"]
[BlackElo "3074"]
[TimeControl "180+1"]
[EndTime "14:08:59 PDT"]
[Termination "Game drawn by repetition"]

1. d4 {[%clk 0:03:00.9]} 1... d5 {[%clk 0:02:57.7]} 2. c4 {[%clk 0:02:58.6]}
2... e6 {[%clk 0:02:57.2]} 3. Nc3 {[%clk 0:02:58]} 3... a6 {[%clk 0:02:53.3]} 4.
e3 {[%clk 0:02:55]} 4... Nf6 {[%clk 0:02:50.9]} 5. Nf3 {[%clk 0:02:55.1]} 5...
b6 {[%clk 0:02:47.3]} 6. b3 {[%clk 0:02:41.8]} 6... Bb7 {[%clk 0:02:39.8]} 7.
Be2 {[%clk 0:02:36.3]} 7... Nbd7 {[%clk 0:02:38.6]} 8. O-O {[%clk 0:02:36]} 8...
Bd6 {[%clk 0:02:38.9]} 9. Bb2 {[%clk 0:02:35.5]} 9... O-O {[%clk 0:02:38.9]} 10.
Rc1 {[%clk 0:02:33.3]} 10... Re8 {[%clk 0:02:36.3]} 11. Na4 {[%clk 0:02:27.8]}
11... c5 {[%clk 0:02:32.2]} 12. Ne5 {[%clk 0:02:25]} 12... cxd4 {[%clk
0:02:04.3]} 13. exd4 {[%clk 0:02:23.2]} 13... dxc4 {[%clk 0:01:58.8]} 14. bxc4
{[%clk 0:02:22.1]} 14... Qc7 {[%clk 0:01:45.3]} 15. Bf3 {[%clk 0:02:08.3]} 15...
Bxf3 {[%clk 0:01:34.8]} 16. Qxf3 {[%clk 0:01:59.1]} 16... Rac8 {[%clk 0:01:13]}
17. Rfe1 {[%clk 0:01:54.6]} 17... h6 {[%clk 0:01:09.1]} 18. c5 {[%clk
0:01:26.2]} 18... bxc5 {[%clk 0:01:07.3]} 19. Nxc5 {[%clk 0:01:24.6]} 19... Qa7
{[%clk 0:00:35]} 20. Nexd7 {[%clk 0:01:13.5]} 20... Nxd7 {[%clk 0:00:33.7]} 21.
Nxd7 {[%clk 0:00:40.7]} 21... Qxd7 {[%clk 0:00:34.6]} 22. Ba3 {[%clk 0:00:40.9]}
22... Bb8 {[%clk 0:00:21.3]} 23. Qd3 {[%clk 0:00:39.8]} 23... Qd5 {[%clk
0:00:20.2]} 24. g3 {[%clk 0:00:35.7]} 24... Qxa2 {[%clk 0:00:18.8]} 25. Qxa6
{[%clk 0:00:35.3]} 25... Rcd8 {[%clk 0:00:14.4]} 26. Qd3 {[%clk 0:00:30.9]}
26... Qd5 {[%clk 0:00:10.2]} 27. Bc5 {[%clk 0:00:23.8]} 27... Bd6 {[%clk
0:00:07.3]} 28. Qe4 {[%clk 0:00:19]} 28... Qg5 {[%clk 0:00:06.8]} 29. Bxd6
{[%clk 0:00:17.5]} 29... Rxd6 {[%clk 0:00:07.4]} 30. Qe5 {[%clk 0:00:18]} 30...
Qd8 {[%clk 0:00:07.3]} 31. Rcd1 {[%clk 0:00:16.8]} 31... Rd5 {[%clk 0:00:07.6]}
32. Qe3 {[%clk 0:00:17.4]} 32... Qd7 {[%clk 0:00:06.3]} 33. Rd2 {[%clk
0:00:13.9]} 33... Rd8 {[%clk 0:00:06.7]} 34. f4 {[%clk 0:00:10]} 34... Qa4
{[%clk 0:00:02.7]} 35. Red1 {[%clk 0:00:09.8]} 35... Qb4 {[%clk 0:00:03.4]} 36.
Rd3 {[%clk 0:00:09.9]} 36... h5 {[%clk 0:00:03.6]} 37. Qd2 {[%clk 0:00:10.1]}
37... Qd6 {[%clk 0:00:03.5]} 38. Qe3 {[%clk 0:00:10.3]} 38... Qe7 {[%clk
0:00:03.6]} 39. Re1 {[%clk 0:00:10.6]} 39... Qf6 {[%clk 0:00:04.1]} 40. Red1
{[%clk 0:00:10.4]} 40... h4 {[%clk 0:00:04.5]} 41. Re1 {[%clk 0:00:10.5]} 41...
g6 {[%clk 0:00:04.8]} 42. Red1 {[%clk 0:00:10.6]} 42... Kg7 {[%clk 0:00:05.3]}
43. Re1 {[%clk 0:00:10.7]} 43... hxg3 {[%clk 0:00:05]} 44. hxg3 {[%clk 0:00:11]}
44... Rh8 {[%clk 0:00:03.8]} 45. Qe4 {[%clk 0:00:11.1]} 45... Rdh5 {[%clk
0:00:03.6]} 46. Kf2 {[%clk 0:00:07.1]} 46... Rh2+ {[%clk 0:00:03.6]} 47. Kf3
{[%clk 0:00:07.5]} 47... Qd8 {[%clk 0:00:02.5]} 48. Qe5+ {[%clk 0:00:07.6]}
48... Kg8 {[%clk 0:00:03.1]} 49. d5 {[%clk 0:00:07.2]} 49... Qa8 {[%clk
0:00:03.8]} 50. Qe4 {[%clk 0:00:05.3]} 50... Qa2 {[%clk 0:00:03.3]} 51. Re2
{[%clk 0:00:05.1]} 51... Rxe2 {[%clk 0:00:02.5]} 52. Qxe2 {[%clk 0:00:06]} 52...
Qa8 {[%clk 0:00:02.4]} 53. Qe4 {[%clk 0:00:04.3]} 53... Rh2 {[%clk 0:00:03.1]}
54. Qd4 {[%clk 0:00:03.2]} 54... Qa2 {[%clk 0:00:02.1]} 55. Ke4 {[%clk
0:00:02.2]} 55... Re2+ {[%clk 0:00:02]} 56. Re3 {[%clk 0:00:02.6]} 56... Rh2
{[%clk 0:00:02.9]} 57. Qd3 {[%clk 0:00:02.7]} 57... Qa4+ {[%clk 0:00:02.9]} 58.
Qd4 {[%clk 0:00:02.9]} 58... Qc2+ {[%clk 0:00:03.6]} 59. Qd3 {[%clk 0:00:03.2]}
59... Qg2+ {[%clk 0:00:04.2]} 60. Rf3 {[%clk 0:00:03.8]} 60... Qh1 {[%clk
0:00:04.2]} 61. dxe6 {[%clk 0:00:03.8]} 61... Qe1+ {[%clk 0:00:04.4]} 62. Re3
{[%clk 0:00:03.9]} 62... Qb4+ {[%clk 0:00:05.1]} 63. Qd4 {[%clk 0:00:03.7]}
63... Qb1+ {[%clk 0:00:05.7]} 64. Qd3 {[%clk 0:00:04.2]} 64... Qb7+ {[%clk
0:00:06.3]} 65. Qd5 {[%clk 0:00:04.8]} 65... Qb4+ {[%clk 0:00:05]} 66. Qd4
{[%clk 0:00:05.1]} 66... Qb1+ {[%clk 0:00:03.1]} 67. Qd3 {[%clk 0:00:05.3]}
67... Rc2 {[%clk 0:00:03.6]} 68. exf7+ {[%clk 0:00:05.1]} 68... Kxf7 {[%clk
0:00:03.8]} 69. Qd7+ {[%clk 0:00:05.6]} 69... Kg8 {[%clk 0:00:04.1]} 70. Qe8+
{[%clk 0:00:05.9]} 70... Kg7 {[%clk 0:00:04.6]} 71. Qe7+ {[%clk 0:00:06.3]}
71... Kh6 {[%clk 0:00:05.2]} 72. Qh4+ {[%clk 0:00:06.9]} 72... Kg7 {[%clk
0:00:05.6]} 73. Qe7+ {[%clk 0:00:07.5]} 73... Kg8 {[%clk 0:00:06.3]} 74. Qe8+
{[%clk 0:00:07.9]} 74... Kh7 {[%clk 0:00:07]} 75. Qe7+ {[%clk 0:00:08.4]} 75...
Kh6 {[%clk 0:00:07.6]} 76. Qh4+ {[%clk 0:00:08.9]} 76... Kg7 {[%clk 0:00:08.3]}
77. Qe7+ {[%clk 0:00:09.5]} 1/2-1/2

[Event "Late-Titled-Tuesday-Blitz-June-18-2024"]
[Site "Chess.com"]
[Date "2024.06.18"]
[Round "1"]
[White "mestrefeitosa19"]
[Black "ozates"]
[Result "0-1"]
[WhiteElo "2299"]
[BlackElo "2626"]
[TimeControl "180+1"]
[EndTime "14:09:00 PDT"]
[Termination "ozates won by resignation"]

1. c4 {[%clk 0:02:59]} 1... g6 {[%clk 0:02:56.1]} 2. Nc3 {[%clk 0:02:58.2]} 2...
Bg7 {[%clk 0:02:55.3]} 3. d4 {[%clk 0:02:57.8]} 3... d6 {[%clk 0:02:55.5]} 4. e4
{[%clk 0:02:57.2]} 4... Nf6 {[%clk 0:02:56]} 5. Nf3 {[%clk 0:02:44.9]} 5... O-O
{[%clk 0:02:55.3]} 6. Be2 {[%clk 0:02:44.6]} 6... Na6 {[%clk 0:02:52.1]} 7. O-O
{[%clk 0:02:44.7]} 7... e5 {[%clk 0:02:52]} 8. d5 {[%clk 0:02:45.1]} 8... Nc5
{[%clk 0:02:51.9]} 9. Qc2 {[%clk 0:02:46]} 9... a5 {[%clk 0:02:50.7]} 10. a3
{[%clk 0:02:45.9]} 10... Nh5 {[%clk 0:02:47.5]} 11. Ne1 {[%clk 0:02:45.6]} 11...
Nf4 {[%clk 0:02:47.2]} 12. Bd1 {[%clk 0:02:43.5]} 12... f5 {[%clk 0:02:45.7]}
13. f3 {[%clk 0:02:42.9]} 13... a4 {[%clk 0:02:38]} 14. Be3 {[%clk 0:02:40.5]}
14... Bh6 {[%clk 0:02:24.7]} 15. Bxc5 {[%clk 0:02:38.7]} 15... dxc5 {[%clk
0:02:25.3]} 16. Nxa4 {[%clk 0:02:39.1]} 16... b6 {[%clk 0:02:16.8]} 17. Nc3
{[%clk 0:02:38.2]} 17... fxe4 {[%clk 0:02:03.1]} 18. Nxe4 {[%clk 0:02:36.8]}
18... Bf5 {[%clk 0:02:02.7]} 19. Be2 {[%clk 0:02:16.1]} 19... Qh4 {[%clk
0:01:32.7]} 20. Nd3 {[%clk 0:02:04.5]} 20... Nxg2 {[%clk 0:01:14.6]} 21. Kxg2
{[%clk 0:01:51.5]} 21... Bh3+ {[%clk 0:01:10.7]} 22. Kh1 {[%clk 0:01:42.3]}
22... Bxf1 {[%clk 0:00:55.7]} 23. Rxf1 {[%clk 0:01:31.4]} 23... Bf4 {[%clk
0:00:54.2]} 24. Nxf4 {[%clk 0:01:28.6]} 24... Rxf4 {[%clk 0:00:55.1]} 25. Qd2
{[%clk 0:01:23.6]} 25... Raf8 {[%clk 0:00:55.1]} 26. d6 {[%clk 0:01:15.7]} 26...
cxd6 {[%clk 0:00:52.8]} 27. Qxd6 {[%clk 0:01:01.5]} 27... R4f5 {[%clk 0:00:53]}
28. Qd5+ {[%clk 0:00:53.5]} 28... Kh8 {[%clk 0:00:50.5]} 29. Ng3 {[%clk
0:00:43.5]} 29... Rg5 {[%clk 0:00:47.2]} 30. Kg2 {[%clk 0:00:43.4]} 30... h5
{[%clk 0:00:35.1]} 31. Qd6 {[%clk 0:00:41.8]} 31... Qf4 {[%clk 0:00:30.7]} 32.
Kh1 {[%clk 0:00:37.1]} 32... h4 {[%clk 0:00:27]} 33. Ne4 {[%clk 0:00:34.3]}
33... Rh5 {[%clk 0:00:21.7]} 34. Qxg6 {[%clk 0:00:30.2]} 34... Rh6 {[%clk
0:00:22]} 35. Qg5 {[%clk 0:00:23.6]} 35... Qxg5 {[%clk 0:00:18.1]} 36. Nxg5
{[%clk 0:00:24.5]} 36... Rd6 {[%clk 0:00:17.8]} 37. Ne4 {[%clk 0:00:23.4]} 37...
Rd4 {[%clk 0:00:17.6]} 38. Rg1 {[%clk 0:00:21.7]} 38... Kh7 {[%clk 0:00:12.5]}
39. Rg4 {[%clk 0:00:21.5]} 39... h3 {[%clk 0:00:10.4]} 40. Rh4+ {[%clk
0:00:21.3]} 40... Kg6 {[%clk 0:00:11.1]} 41. Rxh3 {[%clk 0:00:21]} 41... Kf5
{[%clk 0:00:09.3]} 42. Rh4 {[%clk 0:00:19.6]} 42... Rg8 {[%clk 0:00:07.7]} 43.
Ng3+ {[%clk 0:00:16.7]} 43... Ke6 {[%clk 0:00:07.4]} 44. Rxd4 {[%clk 0:00:16.2]}
44... exd4 {[%clk 0:00:08.3]} 45. Bd3 {[%clk 0:00:15.7]} 45... Ke5 {[%clk
0:00:08.4]} 46. Kg2 {[%clk 0:00:16.1]} 46... Kf4 {[%clk 0:00:08.6]} 47. Kf2
{[%clk 0:00:16.6]} 47... Rh8 {[%clk 0:00:07.3]} 48. Kg2 {[%clk 0:00:15.1]} 48...
Ke3 {[%clk 0:00:07.3]} 49. Be4 {[%clk 0:00:12.6]} 49... d3 {[%clk 0:00:06.7]}
50. Nf1+ {[%clk 0:00:12.9]} 50... Ke2 {[%clk 0:00:05.6]} 51. Ng3+ {[%clk
0:00:13.3]} 51... Ke3 {[%clk 0:00:06.2]} 52. Nf5+ {[%clk 0:00:13.2]} 52... Ke2
{[%clk 0:00:04.3]} 53. Ng3+ {[%clk 0:00:11.8]} 53... Kd2 {[%clk 0:00:04.3]} 54.
h3 {[%clk 0:00:05.2]} 54... Kc2 {[%clk 0:00:04.2]} 55. Bf5 {[%clk 0:00:04]}
55... Rd8 {[%clk 0:00:04.3]} 56. Nf1 {[%clk 0:00:01.2]} 56... Kxb2 {[%clk
0:00:04.8]} 57. Ne3 {[%clk 0:00:01.4]} 57... d2 {[%clk 0:00:05.3]} 58. Kf2
{[%clk 0:00:01.9]} 58... d1=Q {[%clk 0:00:05.3]} 59. Nxd1+ {[%clk 0:00:02.5]}
59... Rxd1 {[%clk 0:00:06.2]} 60. h4 {[%clk 0:00:03.2]} 60... Kxa3 {[%clk
0:00:05.5]} 61. h5 {[%clk 0:00:02.9]} 61... Kb4 {[%clk 0:00:06.1]} 62. h6 {[%clk
0:00:03.1]} 62... Rd8 {[%clk 0:00:05.7]} 63. h7 {[%clk 0:00:02.7]} 63... Kxc4
{[%clk 0:00:05.8]} 64. Be6+ {[%clk 0:00:02.4]} 64... Kc3 {[%clk 0:00:03.7]} 65.
Bg8 {[%clk 0:00:03.3]} 65... Rd2+ {[%clk 0:00:03]} 66. Ke3 {[%clk 0:00:03]}
66... Rd3+ {[%clk 0:00:03]} 67. Kf4 {[%clk 0:00:03.2]} 67... Rd4+ {[%clk
0:00:03.4]} 68. Kg3 {[%clk 0:00:03.6]} 68... Rd1 {[%clk 0:00:02.4]} 69. h8=Q+
{[%clk 0:00:04]} 69... Kb4 {[%clk 0:00:03]} 70. Qg7 {[%clk 0:00:04.7]} 70...
Rg1+ {[%clk 0:00:02.5]} 71. Kf2 {[%clk 0:00:05.6]} 71... Rxg7 {[%clk 0:00:03.4]}
72. Bc4 {[%clk 0:00:06.3]} 72... Kxc4 {[%clk 0:00:03.6]} 73. Ke3 {[%clk
0:00:05.9]} 73... b5 {[%clk 0:00:04.5]} 74. f4 {[%clk 0:00:06.7]} 74... b4
{[%clk 0:00:05.4]} 75. Ke4 {[%clk 0:00:07.5]} 75... Re7+ {[%clk 0:00:05.9]} 76.
Kf5 {[%clk 0:00:07.7]} 76... Re1 {[%clk 0:00:06.8]} 77. Kf6 {[%clk 0:00:08.6]}
77... b3 {[%clk 0:00:07.6]} 78. f5 {[%clk 0:00:09.4]} 78... b2 {[%clk
0:00:08.5]} 79. Kg7 {[%clk 0:00:10.2]} 79... b1=Q {[%clk 0:00:09.4]} 80. f6
{[%clk 0:00:11]} 80... Qf5 {[%clk 0:00:09.9]} 81. f7 {[%clk 0:00:11.9]} 81...
Rg1+ {[%clk 0:00:10.4]} 82. Kf8 {[%clk 0:00:12.8]} 82... Rf1 {[%clk 0:00:10.5]}
0-1

[Event "Late-Titled-Tuesday-Blitz-June-18-2024"]
[Site "Chess.com"]
[Date "2024.06.18"]
[Round "1"]
[White "lukas_111111"]
[Black "szefru"]
[Result "1-0"]
[WhiteElo "2642"]
[BlackElo "2332"]
[TimeControl "180+1"]
[EndTime "14:09:04 PDT"]
[Termination "lukas_111111 won by resignation"]

1. b3 {[%clk 0:02:59.4]} 1... Nf6 {[%clk 0:02:59.8]} 2. Bb2 {[%clk 0:02:56.7]}
2... g6 {[%clk 0:02:59.5]} 3. Bxf6 {[%clk 0:02:55.2]} 3... exf6 {[%clk
0:02:59.6]} 4. c4 {[%clk 0:02:56.1]} 4... Bg7 {[%clk 0:02:59.5]} 5. Nc3 {[%clk
0:02:46.4]} 5... O-O {[%clk 0:02:59.2]} 6. g3 {[%clk 0:02:46.4]} 6... f5 {[%clk
0:02:55.6]} 7. Rc1 {[%clk 0:02:45.8]} 7... Nc6 {[%clk 0:02:54]} 8. Bg2 {[%clk
0:02:45.9]} 8... d6 {[%clk 0:02:53.9]} 9. e3 {[%clk 0:02:45.9]} 9... f4 {[%clk
0:02:25.7]} 10. gxf4 {[%clk 0:02:42.9]} 10... Re8 {[%clk 0:02:09]} 11. Nf3
{[%clk 0:02:39]} 11... Bg4 {[%clk 0:02:08.6]} 12. O-O {[%clk 0:02:37.2]} 12...
Qd7 {[%clk 0:02:01.9]} 13. d4 {[%clk 0:02:34.8]} 13... Ne7 {[%clk 0:01:45.6]}
14. Qd3 {[%clk 0:02:14.4]} 14... Bh3 {[%clk 0:01:35.1]} 15. Ne1 {[%clk
0:01:46.4]} 15... Bxg2 {[%clk 0:01:32.9]} 16. Nxg2 {[%clk 0:01:45]} 16... Qg4
{[%clk 0:01:31.5]} 17. Qe2 {[%clk 0:01:42.2]} 17... Qh3 {[%clk 0:01:28.4]} 18.
Ne1 {[%clk 0:01:34.9]} 18... Nf5 {[%clk 0:01:22.3]} 19. Qf3 {[%clk 0:01:34.6]}
19... Qh6 {[%clk 0:01:20.6]} 20. Qxb7 {[%clk 0:01:29.2]} 20... c5 {[%clk
0:01:15.6]} 21. dxc5 {[%clk 0:01:22.3]} 21... dxc5 {[%clk 0:01:14.1]} 22. Qg2
{[%clk 0:01:13.4]} 22... Rad8 {[%clk 0:01:08.2]} 23. Nf3 {[%clk 0:01:11.4]}
23... Bxc3 {[%clk 0:00:38.9]} 24. Rxc3 {[%clk 0:01:10.5]} 24... Nh4 {[%clk
0:00:36.3]} 25. Nxh4 {[%clk 0:01:10.1]} 25... Qxh4 {[%clk 0:00:37.2]} 26. Qg3
{[%clk 0:01:02.6]} 26... Qf6 {[%clk 0:00:34.8]} 27. Rcc1 {[%clk 0:00:57.8]}
27... Rd2 {[%clk 0:00:34.9]} 28. a4 {[%clk 0:00:49.6]} 28... Red8 {[%clk
0:00:33.4]} 29. Qf3 {[%clk 0:00:48.4]} 29... Qd6 {[%clk 0:00:29.4]} 30. a5
{[%clk 0:00:39.3]} 30... Qd3 {[%clk 0:00:29]} 31. Rb1 {[%clk 0:00:30.4]} 31...
Qc2 {[%clk 0:00:27.8]} 32. a6 {[%clk 0:00:28]} 32... R8d7 {[%clk 0:00:25.8]} 33.
b4 {[%clk 0:00:27.3]} 33... cxb4 {[%clk 0:00:24.8]} 34. Rxb4 {[%clk 0:00:26.4]}
34... Qa2 {[%clk 0:00:25.1]} 35. f5 {[%clk 0:00:22.1]} 35... Qxa6 {[%clk
0:00:23.2]} 36. Rb8+ {[%clk 0:00:21.4]} 36... Rd8 {[%clk 0:00:22.3]} 37. Rfb1
{[%clk 0:00:20.1]} 37... Kg7 {[%clk 0:00:20.6]} 38. Rxd8 {[%clk 0:00:18.8]}
38... Rxd8 {[%clk 0:00:20.4]} 39. Qf4 {[%clk 0:00:19.2]} 39... Qf6 {[%clk
0:00:19.9]} 40. fxg6 {[%clk 0:00:18.6]} 40... Qxg6+ {[%clk 0:00:18.7]} 41. Qg3
{[%clk 0:00:16.6]} 41... Rc8 {[%clk 0:00:18.3]} 42. Rb7 {[%clk 0:00:15.2]} 42...
a5 {[%clk 0:00:16.2]} 43. Ra7 {[%clk 0:00:14.6]} 43... Rc5 {[%clk 0:00:15.5]}
44. h4 {[%clk 0:00:13.8]} 44... Qxg3+ {[%clk 0:00:11.6]} 45. fxg3 {[%clk
0:00:13.3]} 45... Kf6 {[%clk 0:00:11.5]} 46. Kf2 {[%clk 0:00:13.2]} 46... Ke6
{[%clk 0:00:11.5]} 47. Ra6+ {[%clk 0:00:12.6]} 47... Kf5 {[%clk 0:00:11.2]} 48.
Kf3 {[%clk 0:00:12.5]} 48... f6 {[%clk 0:00:10.4]} 49. g4+ {[%clk 0:00:12.1]}
49... Ke5 {[%clk 0:00:10.5]} 50. g5 {[%clk 0:00:11.3]} 50... fxg5 {[%clk
0:00:10.4]} 51. hxg5 {[%clk 0:00:11.5]} 51... Kf5 {[%clk 0:00:11.3]} 52. Ra7
{[%clk 0:00:09.6]} 52... Kg6 {[%clk 0:00:10.8]} 53. Kf4 {[%clk 0:00:08.2]} 53...
Rf5+ {[%clk 0:00:10.7]} 54. Ke4 {[%clk 0:00:07.6]} 54... Rxg5 {[%clk 0:00:10.8]}
55. Kd4 {[%clk 0:00:07.8]} 55... h5 {[%clk 0:00:10.6]} 56. c5 {[%clk 0:00:07.8]}
56... Rg1 {[%clk 0:00:10]} 57. Rxa5 {[%clk 0:00:07.7]} 57... h4 {[%clk
0:00:10.1]} 58. Ra8 {[%clk 0:00:07.8]} 58... Kf7 {[%clk 0:00:09.6]} 59. Rh8
{[%clk 0:00:07.6]} 59... Rh1 {[%clk 0:00:09.5]} 60. c6 {[%clk 0:00:07]} 60...
Rc1 {[%clk 0:00:09.4]} 61. Kd5 {[%clk 0:00:06.7]} 61... Ke7 {[%clk 0:00:08.3]}
62. Rh7+ {[%clk 0:00:06.7]} 62... Kd8 {[%clk 0:00:08.2]} 63. Rxh4 {[%clk
0:00:06.7]} 63... Rd1+ {[%clk 0:00:07.7]} 64. Ke6 {[%clk 0:00:06.5]} 64... Kc7
{[%clk 0:00:07.7]} 65. Rc4 {[%clk 0:00:05.7]} 65... Re1 {[%clk 0:00:06.6]} 66.
e4 {[%clk 0:00:05.9]} 66... Re2 {[%clk 0:00:06.7]} 67. e5 {[%clk 0:00:06.2]}
67... Re1 {[%clk 0:00:06.8]} 68. Kd5 {[%clk 0:00:04.6]} 68... Rd1+ {[%clk
0:00:06.5]} 69. Ke6 {[%clk 0:00:04.8]} 69... Re1 {[%clk 0:00:06.5]} 70. Kf6
{[%clk 0:00:05.2]} 70... Rf1+ {[%clk 0:00:06.9]} 71. Ke7 {[%clk 0:00:05.6]}
71... Re1 {[%clk 0:00:06.6]} 72. e6 {[%clk 0:00:06.1]} 72... Re5 {[%clk
0:00:06.9]} 73. Kf7 {[%clk 0:00:06.2]} 73... Rf5+ {[%clk 0:00:06.6]} 74. Ke8
{[%clk 0:00:06.4]} 74... Re5 {[%clk 0:00:06.9]} 75. e7 {[%clk 0:00:06.6]} 75...
Rf5 {[%clk 0:00:07.2]} 76. Rd4 {[%clk 0:00:06.1]} 76... Kxc6 {[%clk 0:00:07]}
77. Kd8 {[%clk 0:00:06.4]} 77... Re5 {[%clk 0:00:03.3]} 78. e8=Q+ {[%clk
0:00:06.3]} 1-0

[Event "Late-Titled-Tuesday-Blitz-June-18-2024"]
[Site "Chess.com"]
[Date "2024.06.18"]
[Round "1"]
[White "ChEsper99"]
[Black "ansko1999"]
[Result "1-0"]
[WhiteElo "2244"]
[BlackElo "2591"]
[TimeControl "180+1"]
[EndTime "14:09:17 PDT"]
[Termination "ChEsper99 won by checkmate"]

1. e4 {[%clk 0:02:57.6]} 1... c5 {[%clk 0:03:00.2]} 2. c3 {[%clk 0:02:57]} 2...
Nf6 {[%clk 0:03:00.1]} 3. e5 {[%clk 0:02:57.4]} 3... Nd5 {[%clk 0:03:00.3]} 4.
d4 {[%clk 0:02:58.3]} 4... cxd4 {[%clk 0:03:00.4]} 5. cxd4 {[%clk 0:02:59.2]}
5... Nc6 {[%clk 0:02:55.2]} 6. Nf3 {[%clk 0:02:58.2]} 6... d6 {[%clk 0:02:55.1]}
7. Bc4 {[%clk 0:02:58.3]} 7... Nb6 {[%clk 0:02:54.9]} 8. Bb5 {[%clk 0:02:58.7]}
8... dxe5 {[%clk 0:02:36.2]} 9. Nxe5 {[%clk 0:02:59.6]} 9... Bd7 {[%clk
0:02:28.6]} 10. Nxd7 {[%clk 0:03:00.2]} 10... Qxd7 {[%clk 0:02:27.8]} 11. O-O
{[%clk 0:03:00]} 11... e6 {[%clk 0:02:25.8]} 12. Nc3 {[%clk 0:02:57.9]} 12... a6
{[%clk 0:02:23]} 13. Bxc6 {[%clk 0:02:56.4]} 13... Qxc6 {[%clk 0:02:23.9]} 14.
d5 {[%clk 0:02:16]} 14... Nxd5 {[%clk 0:02:20]} 15. Nxd5 {[%clk 0:02:15.9]}
15... Qxd5 {[%clk 0:02:19.9]} 16. Qxd5 {[%clk 0:02:16.5]} 16... exd5 {[%clk
0:02:20.5]} 17. Re1+ {[%clk 0:02:17.2]} 17... Be7 {[%clk 0:02:19.4]} 18. Bf4
{[%clk 0:02:10.6]} 18... Rd8 {[%clk 0:02:13.2]} 19. Rac1 {[%clk 0:02:06.1]}
19... Kf8 {[%clk 0:01:08.4]} 20. Rc7 {[%clk 0:01:57.2]} 20... Bb4 {[%clk
0:01:08]} 21. Rd1 {[%clk 0:01:47.2]} 21... b6 {[%clk 0:00:50.7]} 22. h4 {[%clk
0:01:39.8]} 22... h5 {[%clk 0:00:45.5]} 23. a3 {[%clk 0:01:19.7]} 23... Be7
{[%clk 0:00:40.9]} 24. Rb7 {[%clk 0:01:11.2]} 24... b5 {[%clk 0:00:35.5]} 25. g3
{[%clk 0:01:01.7]} 25... g5 {[%clk 0:00:27.7]} 26. hxg5 {[%clk 0:00:35.4]} 26...
Rg8 {[%clk 0:00:27.5]} 27. Rb6 {[%clk 0:00:08]} 27... Bxg5 {[%clk 0:00:24.5]}
28. Bxg5 {[%clk 0:00:04.7]} 28... Rxg5 {[%clk 0:00:25.4]} 29. Rxa6 {[%clk
0:00:04.8]} 29... d4 {[%clk 0:00:25.3]} 30. Rc6 {[%clk 0:00:02.4]} 30... Re5
{[%clk 0:00:22.7]} 31. Rc2 {[%clk 0:00:02.5]} 31... d3 {[%clk 0:00:16.3]} 32.
Rcd2 {[%clk 0:00:03]} 32... Re2 {[%clk 0:00:13.8]} 33. Rxd3 {[%clk 0:00:03.5]}
33... Rxd3 {[%clk 0:00:13.4]} 34. Rxd3 {[%clk 0:00:03.5]} 34... Rxb2 {[%clk
0:00:14.3]} 35. Rd5 {[%clk 0:00:02]} 35... Rb3 {[%clk 0:00:06.6]} 36. Rxh5
{[%clk 0:00:02.3]} 36... Rxa3 {[%clk 0:00:06.9]} 37. Rxb5 {[%clk 0:00:02.7]}
37... Kg7 {[%clk 0:00:07.3]} 38. Rg5+ {[%clk 0:00:02.5]} 38... Kf6 {[%clk
0:00:07.5]} 39. Rg4 {[%clk 0:00:03.2]} 39... Kf5 {[%clk 0:00:07.3]} 40. Rf4+
{[%clk 0:00:04.1]} 40... Kg6 {[%clk 0:00:07.5]} 41. Kg2 {[%clk 0:00:05]} 41...
f5 {[%clk 0:00:07.6]} 42. Rf3 {[%clk 0:00:05.7]} 42... Ra2 {[%clk 0:00:07.3]}
43. Rd3 {[%clk 0:00:05.7]} 43... Kg5 {[%clk 0:00:07.6]} 44. Rd6 {[%clk 0:00:06]}
44... Ra3 {[%clk 0:00:07.7]} 45. Rd7 {[%clk 0:00:05.5]} 45... Kg6 {[%clk
0:00:05.9]} 46. Rd8 {[%clk 0:00:05.7]} 46... Kf6 {[%clk 0:00:06.2]} 47. Rg8
{[%clk 0:00:05.6]} 47... Ra2 {[%clk 0:00:05.6]} 48. Rh8 {[%clk 0:00:05.6]} 48...
Ra3 {[%clk 0:00:05.9]} 49. Rh4 {[%clk 0:00:06.1]} 49... Kg6 {[%clk 0:00:06.3]}
50. Rf4 {[%clk 0:00:06.6]} 50... Kf6 {[%clk 0:00:06.8]} 51. Kh3 {[%clk 0:00:06]}
51... Kg5 {[%clk 0:00:06.8]} 52. Rd4 {[%clk 0:00:02.9]} 52... Ra1 {[%clk
0:00:07.3]} 53. Kg2 {[%clk 0:00:03.2]} 53... Kf6 {[%clk 0:00:07.6]} 54. f3
{[%clk 0:00:03.3]} 54... Ke5 {[%clk 0:00:07.6]} 55. Rf4 {[%clk 0:00:03]} 55...
Ra2+ {[%clk 0:00:08]} 56. Kh3 {[%clk 0:00:03.3]} 56... Ra1 {[%clk 0:00:08.7]}
57. Kh4 {[%clk 0:00:03.5]} 57... Rh1+ {[%clk 0:00:06.2]} 58. Kg5 {[%clk
0:00:03.9]} 58... Rg1 {[%clk 0:00:06.1]} 59. Rxf5+ {[%clk 0:00:04.4]} 59... Ke6
{[%clk 0:00:06.5]} 60. g4 {[%clk 0:00:05.3]} 60... Ra1 {[%clk 0:00:05]} 61. Rf6+
{[%clk 0:00:05.3]} 61... Ke7 {[%clk 0:00:04.8]} 62. f4 {[%clk 0:00:05.8]} 62...
Rg1 {[%clk 0:00:04.4]} 63. Rf5 {[%clk 0:00:04.3]} 63... Ke6 {[%clk 0:00:04.1]}
64. Re5+ {[%clk 0:00:04.6]} 64... Kf7 {[%clk 0:00:04.3]} 65. Ra5 {[%clk
0:00:04.4]} 65... Ke6 {[%clk 0:00:03.2]} 66. f5+ {[%clk 0:00:04.6]} 66... Ke7
{[%clk 0:00:03.7]} 67. Ra7+ {[%clk 0:00:05]} 67... Kf8 {[%clk 0:00:03.2]} 68.
Kf6 {[%clk 0:00:03.6]} 68... Kg8 {[%clk 0:00:03.8]} 69. g5 {[%clk 0:00:04.1]}
69... Rb1 {[%clk 0:00:02.5]} 70. g6 {[%clk 0:00:03.4]} 70... Rb6+ {[%clk
0:00:02.2]} 71. Kg5 {[%clk 0:00:04]} 71... Rc6 {[%clk 0:00:02]} 72. f6 {[%clk
0:00:03.4]} 72... Rc8 {[%clk 0:00:02.5]} 73. Rd7 {[%clk 0:00:02.8]} 73... Rb8
{[%clk 0:00:02.7]} 74. Rg7+ {[%clk 0:00:01.3]} 74... Kh8 {[%clk 0:00:02.6]} 75.
Re7 {[%clk 0:00:01.6]} 75... Kg8 {[%clk 0:00:02.6]} 76. f7+ {[%clk 0:00:01.9]}
76... Kg7 {[%clk 0:00:02.5]} 77. Re8 {[%clk 0:00:02]} 77... Rb5+ {[%clk
0:00:02.4]} 78. Kf4 {[%clk 0:00:02.2]} 78... Rb4+ {[%clk 0:00:02.9]} 79. Ke3
{[%clk 0:00:02.2]} 79... Rb3+ {[%clk 0:00:03.3]} 80. Kd4 {[%clk 0:00:02.7]}
80... Rf3 {[%clk 0:00:03.5]} 81. Rg8+ {[%clk 0:00:01.6]} 81... Kh6 {[%clk
0:00:03.1]} 82. f8=Q+ {[%clk 0:00:02.5]} 82... Rxf8 {[%clk 0:00:02.4]} 83. Rxf8
{[%clk 0:00:03.4]} 83... Kxg6 {[%clk 0:00:03.1]} 84. Rf3 {[%clk 0:00:03.7]}
84... Kg5 {[%clk 0:00:03.4]} 85. Ke4 {[%clk 0:00:04.3]} 85... Kg4 {[%clk
0:00:04.3]} 86. Rf7 {[%clk 0:00:04.1]} 86... Kh4 {[%clk 0:00:05.2]} 87. Rg7
{[%clk 0:00:04.3]} 87... Kh3 {[%clk 0:00:06.1]} 88. Kf5 {[%clk 0:00:04.5]} 88...
Kh2 {[%clk 0:00:07]} 89. Kf4 {[%clk 0:00:05.1]} 89... Kh1 {[%clk 0:00:07.9]} 90.
Kf3 {[%clk 0:00:05.6]} 90... Kh2 {[%clk 0:00:08.8]} 91. Rg6 {[%clk 0:00:05.3]}
91... Kh3 {[%clk 0:00:09.2]} 92. Rh6# {[%clk 0:00:05.5]} 1-0